lending/lending_fUSD_20240411
["ID","MTS","AMOUNT","RATE_DAILY","PERIOD"]
[322140734,1712847039312,-250.0,0.00021918,2]
[322140736,1712847039321,-783.81607988,0.00022,2]
[322140738,1712847039331,-160.6,0.00022098,2]
[322140739,1712847039340,-6371.29465272,0.00022179,2]
[322140740,1712847039349,-9921.11000002,0.00022189,2]
[322140741,1712847039359,-181.27,0.00022212,2]
[322140742,1712847039369,-593.0,0.000223,2]
[322140743,1712847039378,-3543.0,0.000223,2]
[322140744,1712847039391,-160.6,0.00022321,2]
[322140745,1712847039400,-160.6,0.00022545,2]
[322140746,1712847039410,-262.4,0.00022574,2]
[322140747,1712847039419,-152.77070344,0.00022636,2]
[322140748,1712847039428,-225.0,0.00022704,2]
[322140749,1712847039438,-1891.56,0.00022716,2]
[322140750,1712847039447,-600.0,0.00023,3]
[322140751,1712847039457,-307.11461416,0.00023135,2]
[322140752,1712847039466,-210.0,0.00023136,2]
[322140753,1712847039476,-573.534,0.00023309,2]
[322140754,1712847039487,-5711.0,0.00023309,2]
[322140755,1712847039497,-2463.0,0.00023309,2]
[322140756,1712847039506,-305.808,0.00023309,2]
[322140757,1712847039515,-4796.0,0.00023309,2]
[322140758,1712847039524,-1076.589,0.00023309,2]
[322140759,1712847039535,-6371.29465272,0.00023458,2]
[322140760,1712847039546,-250.0,0.00023545,2]
[322140761,1712847039555,-5872.71538359,0.00023683,2]
[322140762,1712847039565,-181.27,0.00023783,2]
[322140763,1712847039576,-340.58,0.00023899,2]
[322140764,1712847039587,-167.35,0.00024099,2]
[322140765,1712847039597,-432.34776898,0.0002437,2]
[322140766,1712847039608,-152.77070344,0.00024371,2]
[322140767,1712847039618,-737.6,0.00024457,2]
[322140768,1712847039627,-6371.29465272,0.00024737,2]
[322140769,1712847039641,-2014.28390047,0.000248,2]
[322140770,1712847039651,-5872.71538353,0.00024876,2]
[322140771,1712847039661,-1361.79189436,0.00025,2]
[322140772,1712847039988,-650.0,0.00025,3]
[322140773,1712847040033,-284.771409,0.00025,2]
[322140774,1712847040043,-262.4,0.00025082,2]
[322140775,1712847040052,-150.0,0.00025354,2]
[322140776,1712847040062,-181.27,0.00025354,2]
[322140777,1712847040076,-214.0,0.0002545,2]
[322140778,1712847040086,-1891.56,0.00025455,2]
[322140779,1712847040096,-444.10021711,0.00026,2]
[322140781,1712847040106,-294.22363,0.00026,2]
[322140782,1712847040117,-6371.29465272,0.00026016,2]
[322140783,1712847040127,-5872.71538353,0.00026069,2]
[322140784,1712847040138,-152.77070344,0.00026107,2]
[322140785,1712847040149,-340.58,0.00026163,2]
[322140786,1712847040158,-1779.77445173,0.00026232,2]
[322140787,1712847040167,-181.27,0.00026926,2]
[322140788,1712847040177,-700.0,0.00027,3]
[322140790,1712847040186,-737.6,0.00027175,2]
[322140791,1712847040195,-5872.71538353,0.00027262,2]
[322140792,1712847040204,-6371.29465272,0.00027295,2]
[322140793,1712847040213,-178.54,0.00027397,2]
[322140794,1712847040223,-296.93,0.00027397,2]
[322140795,1712847040234,-194.8,0.00027397,2]
[322140796,1712847040243,-262.4,0.00027591,2]
[322140797,1712847040253,-152.77070344,0.00027842,2]
[322140798,1712847040262,-340.58,0.00028427,2]
[322140799,1712847040271,-5872.71538353,0.00028455,2]
[322140800,1712847040281,-6371.29465272,0.00028573,2]
[322140801,1712847040290,-162.32,0.00028659,2]
[322140802,1712847040301,-162.32,0.00028659,2]
[322140803,1712847040311,-162.32,0.00028659,2]
[322140804,1712847040320,-162.32,0.00028659,2]
[322140805,1712847040330,-324.5,0.00028659,2]
[322140806,1712847040339,-320.99237694,0.000288,2]
[322140807,1712847040348,-479.0,0.000289,5]
[322140808,1712847040358,-483.44724555,0.00028942,5]
[322140809,1712847040367,-750.0,0.00029,3]
[322140810,1712847040376,-150.0,0.000292,2]
[322140811,1712847040388,-445.48310641,0.000295,3]
[322140812,1712847040397,-152.77070344,0.00029578,2]
[322140813,1712847040408,-5872.71538353,0.00029648,2]
[322140814,1712847040418,-6371.29465272,0.00029852,2]
[322140815,1712847040429,-205.95,0.00029863,2]
[322140816,1712847040438,-3835.58289811,0.00029886,2]
[322140817,1712847040447,-7500.0,0.00029886,2]
[322140818,1712847040457,-3835.58289809,0.00029887,2]
[322140819,1712847040466,-1944.02909496,0.00029887,2]
[322140820,1712847040475,-3835.58289809,0.00029887,2]
[322140821,1712847040485,-1944.02909492,0.0002989,2]
[322140822,1712847040494,-478.37314,0.00029892,7]
[322140823,1712847040503,-478.37314,0.00029892,7]
[322140824,1712847040512,-737.6,0.00029892,2]
[322140825,1712847040522,-1944.02909492,0.00029894,2]
[322140826,1712847040531,-1944.02909492,0.00029897,2]
[322140827,1712847040540,-1944.02909492,0.000299,2]
[322140828,1712847040549,-550.27132266,0.000299,2]
[322140829,1712847040558,-623.18745446,0.000299,2]
[322140830,1712847040568,-2209.24532718,0.00029904,2]
[322140831,1712847040577,-155.0,0.00029904,2]
[322140832,1712847040587,-511.0,0.00029973,2]
[322140833,1712847040596,-528.0,0.00029973,2]
[322140834,1712847040606,-33641.688146,0.00029979,2]
[322140835,1712847040615,-27966.5567924,0.00029979,2]
[322140836,1712847040625,-3064.3884635,0.00029979,2]
[322140837,1712847040641,-2547.4463001,0.00029979,2]
[322140838,1712847040651,-178912.5766315,0.00029985,7]
[322140839,1712847040661,-432608.82773341,0.00029986,2]
[322140840,1712847040671,-9381.87642446,0.00029986,2]
[322140842,1712847040680,-478.37314,0.00029986,7]
[322140843,1712847040690,-478.37314,0.00029986,7]
[322140844,1712847040699,-935176.11500349,0.00029987,2]
[322140845,1712847040709,-478.37314,0.00029987,7]
[322140846,1712847040718,-478.37314,0.00029987,7]
[322140847,1712847040728,-247.99272374,0.0003,2]
[322140848,1712847040738,-5669.53624761,0.0003,2]
[322140849,1712847040747,-405.62390649,0.0003,4]
[322140850,1712847040756,-5995.80667374,0.0003,2]
[322140852,1712847040770,-14874.75407619,0.0003,4]
[322140853,1712847040779,-1153.71391397,0.0003,2]
[322140854,1712847040789,-641587.30366725,0.0003,2]
[322140855,1712847040800,-60125.0,0.0003,3]
[322140856,1712847040811,-40716.56200869,0.0003,3]
[322140857,1712847040821,-1624257.95,0.0003,5]
[322140858,1712847040831,-1621964.38116417,0.0003,5]
[322140859,1712847040849,-1459.65594652,0.0003,5]
[322140860,1712847040862,-600.0,0.0003,5]
[322140861,1712847040875,-899.9548501,0.0003,5]
[322140862,1712847040889,-715.475,0.0003,5]
[322140863,1712847042077,-357.99,0.0003,5]
[322140864,1712847042092,-733.53134,0.0003,5]
[322140865,1712847042105,-318.2530643,0.0003,5]
[322140866,1712847042183,-473.39741727,0.0003,5]
[322140867,1712847042205,-1935.18134565,0.0003,5]
[322140868,1712847042218,-2039.19270076,0.0003,5]
[322140869,1712847042233,-1959.76255079,0.0003,5]
[322140870,1712847042245,-1746.63655115,0.0003,5]
[322140871,1712847042259,-284.17996473,0.0003,5]
[322140872,1712847042274,-518.62702425,0.0003,5]
[322140873,1712847042289,-4985.45897995,0.0003,5]
[322140874,1712847042302,-428.58003036,0.0003,5]
[322140886,1712847043564,-151.93,0.00023474,2]
[322140887,1712847043574,-151.93,0.00023482,2]
[322140888,1712847043584,-151.93,0.00023489,2]
[322140889,1712847043596,-151.93,0.00023497,2]
[322140890,1712847043606,-151.93,0.00023505,2]
[322140891,1712847043615,-151.93,0.00023513,2]
[322140892,1712847043624,-16547.22125258,0.0003,5]
[322140893,1712847043638,-3528.77199161,0.0003,5]
[322140894,1712847043650,-1055.36857846,0.0003,5]
[322140895,1712847043661,-420.44070369,0.0003,5]
[322140896,1712847043824,-6841.61874499,0.0003,5]
[322140914,1712847046356,-151.93,0.00023521,2]
[322140916,1712847046366,-151.93,0.00023529,2]
[322140917,1712847046375,-151.93,0.00023536,2]
[322140919,1712847046385,-90.14811566,0.00023544,2]
[322140973,1712847047558,-61.78188434,0.00023544,2]
[322140974,1712847047568,-151.93,0.00023552,2]
[322140975,1712847047578,-706.1518218,0.000299,2]
[322140976,1712847047590,-334.57169106,0.000299,2]
[322140977,1712847047602,-1995.61065348,0.000299,2]
[322140978,1712847047611,-4566.14445211,0.0003,5]
[322140979,1712847047656,-151.93,0.0002356,2]
[322140980,1712847047665,-34089.06119666,0.0003,5]
[322140981,1712847069588,257727.08896249,0.00021,2]
[322140982,1712847075255,2209.24532718,0.00021,2]
[322140983,1712847088590,550.0,0.00021,3]
[322140984,1712847124048,1537.90725779,0.000155,2]
[322140985,1712847271083,2289.11504701,0.00015,2]
[322140986,1712847293440,168.68,0.00027749,120]
[322140987,1712847396047,17756.21538281,0.0002089,2]
[322141005,1712848231458,-433.25716044,0.00021899,2]
[322141007,1712848231468,-116.74283956,0.000219,2]
[322141008,1712848231481,-674.37596368,0.000219,2]
[322141009,1712848231491,-783.81607988,0.00022691,2]
[322141010,1712848231500,-2730.76467051,0.00022692,2]
[322141011,1712848231519,-585.0,0.000227,2]
[322141012,1712848231529,-3872.0,0.000228,2]
[322141013,1712848231538,-163.78084881,0.00022893,2]
[322141014,1712848231548,-600.0,0.00023,3]
[322141015,1712848231559,-307.11461416,0.00023464,2]
[322141016,1712848231569,-150.0,0.00023465,2]
[322141017,1712848231579,-150.0,0.00023465,2]
[322141018,1712848231589,-385.87,0.00023465,2]
[322141019,1712848231600,-621.28,0.00023467,2]
[322141020,1712848231610,-4227.44,0.00023467,2]
[322141021,1712848231621,-9869.5382,0.00023467,2]
[322141022,1712848231632,-151.93,0.00023568,2]
[322141023,1712848231643,-151.93,0.00023576,2]
[322141024,1712848231654,-2210.87,0.00023576,2]
[322141025,1712848231665,-151.93,0.00023583,2]
[322141026,1712848231675,-151.93,0.00023591,2]
[322141027,1712848231685,-224.65965367,0.00024,2]
[322141028,1712848231695,-334.3,0.00024115,2]
[322141029,1712848231705,-650.0,0.00025,3]
[322141030,1712848231715,-1361.79189436,0.00025,2]
[322141031,1712848231725,-499.99,0.00025,2]
[322141032,1712848231734,-227.814732,0.00025296,2]
[322141033,1712848231744,-2979.98,0.00025534,2]
[322141034,1712848231755,-166.83,0.00025536,2]
[322141035,1712848231766,-1250.81,0.00025578,2]
[322141036,1712848231777,-250.0,0.00025599,2]
[322141037,1712848231786,-200.0,0.00025641,2]
[322141038,1712848231796,-1000.0,0.00025665,2]
[322141039,1712848231806,-715.05532847,0.00025882,2]
[322141043,1712848232080,-8308.02,0.00025984,2]
[322141044,1712848232113,-1953.95,0.00026084,2]
[322141045,1712848232123,-250.0,0.00026091,2]
[322141046,1712848232133,-23900.0,0.00026104,2]
[322141047,1712848232144,-250.0,0.00026124,2]
[322141048,1712848232154,-289.76,0.00026237,2]
[322141049,1712848232163,-4873.86313248,0.00026241,2]
[322141050,1712848232193,-1397.396,0.00026241,2]
[322141051,1712848232218,-1310.84086752,0.00026241,2]
[322141052,1712848232228,-2122.64872634,0.0002632,2]
[322141053,1712848232240,-157.84127366,0.0002632,2]
[322141054,1712848232250,-334.3,0.00026379,2]
[322141055,1712848232260,-163.78084881,0.00026397,2]
[322141056,1712848232269,-979.32,0.00026871,2]
[322141057,1712848232280,-700.0,0.00027,3]
[322141059,1712848232290,-1114.75787753,0.0002732,2]
[322141061,1712848232302,-1109.24155575,0.0002732,2]
[322141063,1712848232313,-334.66799233,0.0002732,2]
[322141065,1712848232322,-197.68,0.00027397,2]
[322141066,1712848232330,-158.57,0.00027443,2]
[322141067,1712848232340,-158.57,0.00027458,2]
[322141068,1712848232349,-158.57,0.00027473,2]
[322141069,1712848232360,-158.57,0.00027488,2]
[322141070,1712848232370,-158.57,0.00027503,2]
[322141071,1712848232380,-158.57,0.00027519,2]
[322141072,1712848232389,-158.57,0.00027534,2]
[322141073,1712848232398,-158.57,0.00027549,2]
[322141074,1712848232407,-158.57,0.00027564,2]
[322141075,1712848232417,-158.57,0.0002758,2]
[322141076,1712848232426,-155.0,0.00027749,2]
[322141077,1712848232436,-146.14436906,0.00027749,2]
[322141078,1712848232449,-2063.10095812,0.00027749,2]
[322141079,1712848232459,-175.82,0.00028173,2]
[322141080,1712848232469,-562.74532621,0.00028183,2]
[322141081,1712848232478,-2979.98,0.00028273,2]
[322141082,1712848232488,-334.3,0.00028643,2]
[322141083,1712848232498,-654.82,0.0002865,10]
[322141084,1712848232508,-808.57115456,0.00028659,2]
[322141085,1712848232518,-3105.91945338,0.0002866,2]
[322141086,1712848232529,-66432.12267966,0.0002866,2]
[322141087,1712848232539,-1367.17078383,0.00028758,2]
[322141088,1712848232549,-155.0,0.00028758,2]
[322141089,1712848232558,-155.17850615,0.00028758,2]
[322141090,1712848232568,-662.32581776,0.00028758,2]
[322141091,1712848232578,-2350.35141617,0.00028758,2]
[322141092,1712848232588,-181.16211618,0.00028758,2]
[322141093,1712848232598,-4352.09132313,0.00028759,2]
[322141094,1712848232608,-1000.0,0.00028873,2]
[322141095,1712848232618,-750.0,0.00029,3]
[322141096,1712848232627,-814.85,0.00029009,2]
[322141097,1712848232637,-308.52,0.00029009,2]
[322141098,1712848232647,-66432.12267961,0.00029422,2]
[322141099,1712848232657,-3105.91945334,0.00029481,2]
[322141100,1712848232668,-1000.0,0.000296,2]
[322141101,1712848232678,-2370.47952574,0.00029898,4]
[322141102,1712848232687,-321.68566179,0.00029898,2]
[322141103,1712848232697,-7576.6438,0.00029898,2]
[322141104,1712848232708,-3441.67977,0.000299,2]
[322141105,1712848232718,-163.78084881,0.000299,2]
[322141106,1712848232728,-152.77070344,0.000299,2]
[322141107,1712848232737,-7500.0,0.000299,2]
[322141108,1712848232748,-425.5582199,0.00029981,2]
[322141109,1712848232759,-220.23863973,0.00029988,2]
[322141110,1712848232770,-248.48570102,0.00029996,2]
[322141111,1712848232780,-271.66882113,0.00029996,2]
[322141112,1712848232791,-303.5642936,0.00029996,2]
[322141113,1712848232801,-333.68785673,0.00029996,2]
[322141114,1712848232815,-466.75428423,0.00029996,2]
[322141115,1712848232824,-1296.33667789,0.00029996,2]
[322141116,1712848232834,-155.15479403,0.00029996,2]
[322141117,1712848232847,-155.0,0.00029996,2]
[322141118,1712848232859,-155.0,0.00029996,2]
[322141119,1712848232872,-4311.68165139,0.00029996,2]
[322141120,1712848232883,-164.01340579,0.00029996,2]
[322141121,1712848232893,-260.08259237,0.00029996,2]
[322141122,1712848232903,-446.98536618,0.00029996,2]
[322141123,1712848232912,-215.59878753,0.00029996,2]
[322141124,1712848232922,-1762.27300257,0.00029996,2]
[322141125,1712848232931,-686.58612952,0.00029997,2]
[322141126,1712848232942,-166.57598756,0.00029997,2]
[322141127,1712848232951,-227.51184237,0.00029997,2]
[322141128,1712848232963,-170.78473783,0.00029998,2]
[322141129,1712848232972,-889.59178794,0.00029998,2]
[322141130,1712848232982,-156.89734001,0.00029998,2]
[322141131,1712848232991,-236.21588443,0.00029998,2]
[322141132,1712848233002,-261.69742537,0.00029998,2]
[322141133,1712848233013,-166.98481228,0.00029998,2]
[322141134,1712848233024,-87964.95798212,0.00029998,2]
[322141135,1712848233039,-56505.1293222,0.00029998,2]
[322141136,1712848233055,-661.09980704,0.00029998,2]
[322141137,1712848233068,-3455.45,0.00029998,2]
[322141138,1712848233083,-6573.45320501,0.00029998,2]
[322141139,1712848233104,-3325.01349996,0.00029998,2]
[322141140,1712848233136,-1350.57930346,0.00029998,2]
[322141141,1712848233152,-407.37913859,0.00029998,2]
[322141163,1712848237461,-165.78,0.00029204,2]
[322141164,1712848237471,-165.78,0.00029223,2]
[322141165,1712848237481,-165.78,0.00029241,2]
[322141166,1712848237490,-165.78,0.00029259,2]
[322141167,1712848237499,-165.78,0.00029277,2]
[322141168,1712848237508,-161.69,0.00029888,2]
[322141169,1712848237517,-161.69,0.00029988,2]
[322141170,1712848237526,-161.69,0.0002999,2]
[322141171,1712848237535,-161.69,0.0002999,2]
[322141172,1712848237546,-161.69,0.0002999,2]
[322141173,1712848237555,-29743.29080659,0.00029998,2]
[322141177,1712848238816,-2433.724515,0.00029998,2]
[322141181,1712848238839,-1780.0,0.00029998,2]
[322141184,1712848238852,-25110.80000001,0.00029998,2]
[322141186,1712848238872,-656.86,0.00029998,2]
[322141187,1712848238885,-13803.4,0.00029998,2]
[322141188,1712848238899,-18100.48404565,0.00029998,2]
[322141189,1712848238912,-66240.71548905,0.00029998,2]
[322141190,1712848238922,-166.46663172,0.00029998,2]
[322141191,1712848238932,-1600.486753,0.00029998,2]
[322141192,1712848238942,-207.31426992,0.00029999,2]
[322141193,1712848238953,-785.01685631,0.00029999,2]
[322141194,1712848238966,-1219.95356242,0.00029999,2]
[322141195,1712848238978,-2498.0758525,0.00029999,2]
[322141196,1712848238987,-500.0,0.00029999,2]
[322141197,1712848238997,-500.0,0.00029999,2]
[322141198,1712848239006,-551.02328495,0.00029999,2]
[322141199,1712848239017,-206.59266165,0.00029999,2]
[322141200,1712848239026,-1741.61558572,0.00029999,2]
[322141201,1712848239036,-157.87484149,0.0003,5]
[322141202,1712848239048,-376.12515851,0.0003,5]
[322141203,1712848239058,-4586.03014349,0.0003,5]
[322141204,1712848239072,-343.828485,0.0003,5]
[322141205,1712848239085,-4158.041368,0.0003,5]
[322141206,1712848239097,-1764.75,0.0003,5]
[322141207,1712848239115,-6978.27816001,0.0003,5]
[322141216,1712848239976,-545.68,0.0002865,10]
[322141217,1712848239986,-165.78,0.00029296,2]
[322141218,1712848239995,-165.78,0.00029314,2]
[322141219,1712848240004,-165.78,0.00029332,2]
[322141220,1712848240013,-4902.07997783,0.0003,5]
[322141221,1712848240026,-6943.14807,0.0003,5]
[322141222,1712848240051,-34451.27499999,0.0003,5]
[322141223,1712848240065,-1157.46905879,0.0003,5]
[322141224,1712848240077,-36986.18844464,0.0003,5]
[322141226,1712848240089,-13339.94249657,0.0003,5]
[322141230,1712848240122,-165.78,0.0002935,2]
[322141232,1712848240132,-1953.14362697,0.0003,5]
[322141234,1712848240144,-371298.96031861,0.0003,5]
[322141236,1712848240154,-215.65,0.0003,2]
[322141238,1712848240163,-5669.53624761,0.0003,2]
[322141240,1712848240173,-2232.1246712,0.0003,4]
[322141242,1712848240182,-150.0,0.0003,2]
[322141243,1712848240191,-486.989,0.0003,2]
[322141244,1712848240201,-405.62390649,0.0003,4]
[322141245,1712848240211,-1718.8999988,0.0003,2]
[322141246,1712848240220,-113892.73310293,0.0003,2]
[322141247,1712848240231,-1336.17433799,0.0003,2]
[322141248,1712848240243,-526358.39622733,0.0003,2]
[322141249,1712848240252,-3362.6584934,0.00030038,2]
[322141250,1712848240262,-1012.4216041,0.00030058,2]
[322141251,1712848240271,-11621.8609732,0.00030079,2]
[322141252,1712848240280,-5000.0,0.000301,4]
[322141253,1712848240289,-203.74317491,0.00030137,2]
[322141254,1712848240299,-511.0,0.00030137,2]
[322141255,1712848240310,-530.0,0.00030137,2]
[322141256,1712848240319,-66432.12267961,0.00030184,2]
[322141257,1712848240329,-3105.91945334,0.00030302,2]
[322141258,1712848240338,-150.0,0.0003031,2]
[322141259,1712848240347,-150.0,0.00030394,2]
[322141260,1712848240357,-2370.47952573,0.00030466,5]
[322141261,1712848240367,-150.0,0.000306,2]
[322141262,1712848240376,-150.0,0.000306,2]
[322141263,1712848240385,-150.0,0.000306,2]
[322141264,1712848240394,-150.0,0.000306,2]
[322141265,1712848240404,-10802.28252931,0.000308,2]
[322141266,1712848240414,-2123.76488424,0.000308,2]
[322141267,1712848240423,-161.69,0.0003089,2]
[322141268,1712848240433,-247.99272375,0.000309,2]
[322141269,1712848240443,-250000.0,0.000309,2]
[322141270,1712848240452,-334.3,0.00030907,2]
[322141271,1712848240462,-500.0,0.00030944,2]
[322141272,1712848240471,-476.00914627,0.00030944,2]
[322141273,1712848240481,-283.1708994,0.00030944,2]
[322141274,1712848240490,-164.84756252,0.00030944,2]
[322141275,1712848240499,-500.0,0.00030944,2]
[322141276,1712848240508,-353.45433231,0.00030944,2]
[322141277,1712848240518,-66432.12267961,0.00030945,2]
[322141278,1712848240527,-490.78981057,0.00031,4]
[322141279,1712848240536,-800.0,0.00031,3]
[322141280,1712848240546,-2979.98,0.00031013,2]
[322141281,1712848240555,-2370.47952573,0.00031033,5]
[322141282,1712848240567,-321.68566179,0.00031108,2]
[322141283,1712848240578,-3105.91945334,0.00031123,2]
[322141284,1712848240588,-2123.76488424,0.00031428,3]
[322141285,1712848240599,-511.0,0.00031507,2]
[322141286,1712848240608,-530.0,0.00031507,2]
[322141287,1712848240617,-2370.47952573,0.00031601,5]
[322141288,1712848240629,-215.65,0.000317,2]
[322141289,1712848240640,-66432.12267961,0.00031707,2]
[322141290,1712848240652,-157.04112,0.00031748,18]
[322141291,1712848240661,-366.84754844,0.00031842,2]
[322141292,1712848240672,-187.52025476,0.00031858,2]
[322141293,1712848240683,-597.78573684,0.00031858,2]
[322141294,1712848240694,-595.10629194,0.00031858,2]
[322141295,1712848240704,-14342.79222581,0.00031858,2]
[322141296,1712848240714,-281.05525417,0.00031858,2]
[322141297,1712848240724,-224.91491427,0.00031866,20]
[322141298,1712848240734,-947.86005895,0.00031873,2]
[322141299,1712848240744,-229986.18031108,0.00031877,2]
[322141300,1712848240754,-947.86005895,0.00031879,2]
[322141301,1712848240764,-947.86005895,0.00031886,2]
[322141302,1712848240773,-17312.53040594,0.00031888,2]
[322141303,1712848240783,-17312.53040594,0.00031889,2]
[322141304,1712848240792,-580.77783011,0.00031892,2]
[322141305,1712848240802,-17312.53040594,0.0003191,2]
[322141306,1712848240814,-5159.0,0.00031918,4]
[322141307,1712848240824,-947.86005895,0.00031918,2]
[322141308,1712848240834,-17312.53040594,0.00031925,2]
[322141309,1712848240844,-229986.18031108,0.00031937,2]
[322141310,1712848240854,-150103.12791048,0.00031941,7]
[322141311,1712848240873,-1028.98584282,0.00031941,7]
[322141312,1712848240885,-975.83,0.00031941,7]
[322141313,1712848240915,-16097.51664998,0.00031941,7]
[322141314,1712848240926,-1741.58999888,0.00031941,7]
[322141322,1712848242470,-967.38872917,0.00029999,2]
[322141323,1712848242482,-774.22685654,0.00029999,2]
[322141324,1712848242491,-635554.83019234,0.00031941,7]
[322141325,1712848242505,-2422.52822478,0.00031941,7]
[322141326,1712848242527,-5221.17042039,0.00031941,7]
[322141327,1712848242646,-1579.48496141,0.00031941,7]
[322141328,1712848242661,-1199.9911984,0.00031941,7]
[322141329,1712848242675,-728.65757554,0.00031941,7]
[322141330,1712848242688,-829.35664531,0.00031941,7]
[322141331,1712848242700,-2239.87734739,0.00031941,7]
[322141332,1712848242712,-11797.36825695,0.00031941,7]
[322141333,1712848242724,-3786.11484067,0.00031941,7]
[322141334,1712848242736,-4392.83676219,0.00031941,7]
[322141335,1712848242748,-25350.38105233,0.00031941,7]
[322141336,1712848242766,-255.97501553,0.00030018,2]
[322141337,1712848242779,-998.49668317,0.00030018,2]
[322141338,1712848242790,-2461.66923683,0.00031941,7]
[322141339,1712848242802,-870.000002,0.00031941,7]
[322141340,1712848242816,-1753.20000002,0.00031941,7]
[322141341,1712848242832,-69068.811,0.00031941,7]
[322141342,1712848242876,-227771.54656168,0.00031941,7]
[322141343,1712848242885,-229986.18031108,0.00031942,2]
[322141344,1712848242895,-3105.91945334,0.00031944,2]
[322141345,1712848242904,-3023.0244557,0.00031944,2]
[322141346,1712848242914,-947.86005895,0.00031945,2]
[322141347,1712848242923,-959.964371,0.00031945,7]
[322141348,1712848242932,-161.021274,0.00031945,7]
[322141349,1712848242942,-151.0,0.00031945,7]
[322141350,1712848242951,-959.964371,0.00031945,7]
[322141351,1712848242960,-161.021274,0.00031945,7]
[322141352,1712848242970,-226.793385,0.00031945,7]
[322141353,1712848242978,-152.19879,0.00031945,7]
[322141354,1712848242988,-226.793385,0.00031945,7]
[322141355,1712848242997,-313.882761,0.00031945,7]
[322141356,1712848243006,-155.984434,0.00031945,7]
[322141357,1712848243016,-147904.0,0.00031945,4]
[322141358,1712848243025,-1073.0,0.00031945,4]
[322141359,1712848243034,-580.77783011,0.00031945,2]
[322141360,1712848243043,-580.77783011,0.00031947,2]
[322141362,1712848243053,-10471.5696162,0.00031948,2]
[322141363,1712848243062,-910.1653571,0.00031948,2]
[322141364,1712848243072,-947.86005895,0.00031951,2]
[322141365,1712848243081,-229986.18031108,0.00031958,2]
[322141366,1712848243090,-151.0,0.00031958,7]
[322141367,1712848243099,-151.0,0.00031958,7]
[322141368,1712848243112,-151.0,0.00031958,7]
[322141369,1712848243124,-151.0,0.00031958,7]
[322141370,1712848243133,-151.0,0.00031958,7]
[322141371,1712848243142,-151.0,0.00031958,7]
[322141372,1712848243153,-151.0,0.00031958,7]
[322141373,1712848243162,-151.0,0.00031958,7]
[322141374,1712848243172,-151.0,0.00031958,7]
[322141375,1712848243181,-580.77783011,0.00031961,2]
[322141376,1712848243191,-17312.53040594,0.00031962,2]
[322141377,1712848243200,-17312.53040594,0.00031964,2]
[322141378,1712848243210,-947.86005895,0.00031965,2]
[322141379,1712848243219,-173.417164,0.00031966,7]
[322141380,1712848243228,-192.858646,0.00031966,7]
[322141381,1712848243237,-192.858646,0.00031966,7]
[322141382,1712848243246,-151.0,0.00031966,7]
[322141383,1712848243255,-243.537156,0.00031966,7]
[322141384,1712848243265,-153.545955,0.00031966,7]
[322141385,1712848243273,-151.0,0.00031966,7]
[322141386,1712848243282,-151.0,0.00031966,7]
[322141387,1712848243292,-151.0,0.00031966,7]
[322141388,1712848243302,-153.545955,0.00031966,7]
[322141389,1712848243311,-151.0,0.00031966,7]
[322141390,1712848243322,-351.83518,0.00031966,7]
[322141391,1712848243331,-351.83518,0.00031966,7]
[322141392,1712848243341,-959.964371,0.00031966,7]
[322141393,1712848243350,-161.021274,0.00031966,7]
[322141394,1712848243359,-151.0,0.00031966,7]
[322141395,1712848243369,-959.964371,0.00031966,7]
[322141396,1712848243378,-161.021274,0.00031966,7]
[322141397,1712848243387,-544.705449,0.00031966,7]
[322141398,1712848243397,-544.705449,0.00031966,7]
[322141399,1712848243406,-226.793385,0.00031966,7]
[322141400,1712848243415,-226.793385,0.00031966,7]
[322141401,1712848243424,-313.882761,0.00031966,7]
[322141402,1712848243434,-229986.18031108,0.00031966,2]
[322141403,1712848243443,-151.0,0.0003197,7]